bitfinex/quotes_SOLUSD_20250721
["timestamp","ask_amount","ask_price","bid_price","bid_amount"]
[1753100787811,37.0,190.77,190.76,0.03]
[1753100788018,37.72,190.77,190.76,0.03]
[1753100788435,37.0,190.77,190.76,26.03]
[1753100789409,37.0,190.77,190.76,0.03]
[1753100789737,37.0,190.77,190.76,26.03]
[1753100790337,42.90191434,190.77,190.76,26.03]
[1753100790644,67.1562379,190.77,190.76,0.03]
[1753100791040,61.91432356,190.77,190.76,0.03]
[1753100791508,61.25432356,190.77,190.76,0.03]
[1753100791712,55.32108397,190.77,190.76,0.03]
[1753100791934,61.25432356,190.77,190.76,0.03]
[1753100792241,61.91432356,190.77,190.76,0.03]
[1753100793629,59.41432356,190.77,190.76,0.03]
[1753100794740,53.48108397,190.77,190.76,0.03]
[1753100794939,59.41432356,190.77,190.76,0.03]
[1753100795943,52.82108397,190.77,190.76,0.03]
[1753100796312,64.6962379,190.77,190.76,0.03]
[1753100796519,59.45432356,190.77,190.76,0.03]
[1753100796827,53.52108397,190.77,190.76,0.03]
[1753100797514,52.82108397,190.77,190.76,0.03]
[1753100797719,53.52108397,190.77,190.76,0.03]
[1753100798349,52.82108397,190.77,190.76,0.03]
[1753100800248,53.52108397,190.77,190.76,0.03]
[1753100801943,52.82108397,190.77,190.76,0.03]
[1753100802146,51.98468397,190.77,190.76,0.03]
[1753100804437,51.28468397,190.77,190.76,0.03]
[1753100805649,0.06,190.78,190.76,0.73]
[1753100805855,36.96,190.77,190.76,0.03]
[1753100806233,36.96,190.77,190.76,26.03]
[1753100806433,36.96,190.77,190.76,26.73]
[1753100806649,36.96,190.77,190.76,26.03]
[1753100806838,36.96,190.77,190.76,0.03]
[1753100808659,36.96,190.77,190.76,26.03]
[1753100809639,36.96,190.77,190.76,37.90542872]
[1753100812261,37.02,190.78,190.76,37.90542872]
[1753100812560,37.02,190.78,190.77,6.63323959]
[1753100813646,37.02,190.78,190.77,11.87515393]
[1753100815555,37.72,190.78,190.76,0.03]
[1753100815767,37.02,190.78,190.76,0.03]
[1753100815964,37.72,190.78,190.76,0.03]
[1753100816136,37.02,190.78,190.77,26.0]
[1753100816839,37.72,190.78,190.76,0.03]
[1753100817046,17.48468397,190.77,190.76,0.03]
[1753100817367,23.41792356,190.77,190.76,0.03]
[1753100817742,28.6598379,190.77,190.76,0.03]
[1753100818470,17.48468397,190.77,190.76,0.03]
[1753100818641,60.37792356,190.77,190.76,0.03]
[1753100818957,54.44468397,190.77,190.76,0.03]
[1753100819539,60.37792356,190.77,190.76,0.03]
[1753100822467,17.48468397,190.77,190.76,0.03]
[1753100822761,53.72468397,190.77,190.76,0.03]
[1753100823160,53.72468397,190.77,190.76,26.03]
[1753100827768,53.72468397,190.77,190.76,0.03]
[1753100830253,54.44468397,190.77,190.76,0.03]
[1753100830672,53.72468397,190.77,190.76,0.03]
[1753100831271,53.78468397,190.77,190.76,0.03]
[1753100832753,0.06,190.77,190.76,32.67323959]
[1753100833058,37.0,190.77,190.76,32.67323959]
[1753100834679,37.0,190.77,190.76,37.91542872]
[1753100841860,0.06,190.77,190.76,37.91542872]
[1753100843771,0.06,190.77,190.76,43.49933354]
[1753100843966,0.06,190.81,190.8,26.0]
[1753100844284,0.06,190.81,190.8,51.60301817]
[1753100844966,0.06,190.82,190.81,7.44263417]
[1753100845166,0.06,190.82,190.81,12.68344964]
[1753100845494,0.06,190.82,190.81,17.46795988]
[1753100845888,0.06,190.83,190.81,17.99204142]
[1753100846186,0.06,190.83,190.82,12.91614441]
[1753100846369,1e-08,190.83,190.82,12.91614441]
[1753100846569,0.06,190.86,190.85,26.0]
[1753100846886,0.06,190.86,190.85,38.20614441]
[1753100847072,0.06,190.86,190.85,38.91614441]
[1753100847270,0.06,190.86,190.85,44.15586146]
[1753100848374,0.06,190.86,190.85,48.2587451]
[1753100854966,1e-08,190.86,190.85,48.2587451]
[1753100855173,0.06,190.9,190.88,26.0]
[1753100855372,0.06,190.9,190.88,38.8265333]
[1753100855598,0.06,190.9,190.88,39.5065333]
[1753100856299,0.06,190.9,190.88,45.43977289]
[1753100856480,0.06,190.9,190.88,39.5065333]
[1753100856874,0.06,190.9,190.88,44.74542684]
[1753100860786,0.06,190.9,190.88,38.81218725]
[1753100860989,0.06,190.9,190.88,44.74542684]
[1753100861690,0.06,190.9,190.88,95.0013006]
[1753100861882,0.06,190.93,190.92,5.93323959]
[1753100862193,0.06,190.93,190.92,12.36720303]
[1753100862399,0.06,190.93,190.92,13.04720303]
[1753100862601,0.06,190.93,190.92,18.28499896]
[1753100863103,0.06,190.94,190.93,12.9254808]
[1753100863479,0.06,190.94,190.93,13.6054808]
[1753100864614,0.1,190.97,190.95,31.23697302]
[1753100864892,0.1,190.97,190.95,5.93323959]
[1753100865300,0.79,190.96,190.95,5.93323959]
[1753100866198,0.1,190.96,190.94,26.0]
[1753100866400,0.1,190.96,190.95,5.93323959]
[1753100866895,0.79,190.96,190.95,5.93323959]
[1753100867200,0.1,190.96,190.95,8.54396327]
[1753100867899,16.78468397,190.95,190.88,4.26060775]
[1753100868100,0.69,190.94,190.87,5.23916802]
[1753100868404,0.69,190.94,190.93,5.93323959]
[1753100868779,18.40998397,190.96,190.95,26.0]
[1753100868995,2.3153,190.96,190.94,5.93323959]
[1753100869192,0.69,190.95,190.94,5.93323959]
[1753100869400,1.6253,190.96,190.94,5.93323959]
[1753100869594,18.40998397,190.96,190.95,5.93323959]
[1753100870097,1.6253,190.96,190.95,5.93323959]
[1753100871481,0.1,190.96,190.95,5.93323959]
[1753100871700,0.79,190.96,190.95,5.93323959]
[1753100872491,0.1,190.96,190.95,11.17021261]
[1753100874707,0.79,190.96,190.95,11.17021261]
[1753100875909,0.1,190.96,190.95,11.17021261]
[1753100876413,0.79,190.96,190.95,11.17021261]
[1753100876617,0.1,190.96,190.95,11.85021261]
[1753100878194,1e-08,190.96,190.95,11.85021261]
[1753100879108,0.1,190.98,190.97,26.0]
[1753100879293,1e-08,190.98,190.97,5.93323959]
[1753100879492,1e-08,190.98,190.97,6.61323959]
[1753100879809,1e-08,190.98,190.97,11.84966415]
[1753100880305,1e-08,190.98,190.97,17.78290374]
[1753100880494,0.69,191.06,190.99,26.0]
[1753100880693,17.47468397,191.06,191.05,5.93323959]
[1753100880895,0.69,191.06,191.05,5.93323959]
[1753100881802,36.86,191.08,191.07,26.0]
[1753100882005,0.68,191.08,191.07,31.93323959]
[1753100882314,1.5392,191.09,191.07,31.93323959]
[1753100882606,18.32388397,191.09,191.08,26.0]
[1753100883013,16.78468397,191.08,191.06,5.93323959]
[1753100883193,0.68,191.07,191.06,5.93323959]
[1753100883794,0.68,191.07,191.06,11.1671975]
[1753100883991,2.2192,191.09,191.08,26.0]
[1753100884302,2.2192,191.09,191.08,31.93323959]
[1753100884509,1.5392,191.09,191.08,31.93323959]
[1753100885100,1.5392,191.09,191.08,26.0]
[1753100885313,2.2192,191.09,191.08,26.0]
[1753100885706,2.2192,191.09,191.08,31.93323959]
[1753100886214,2.2192,191.09,191.08,5.93323959]
[1753100886914,2.2192,191.09,191.08,26.0]
[1753100887414,1.5392,191.09,191.08,5.93323959]
[1753100887795,1.5392,191.09,191.08,11.16664968]
[1753100888603,53.62468397,191.12,191.08,11.16664968]
[1753100888817,36.84,191.12,191.11,5.93323959]
[1753100889710,0.1,191.13,191.11,5.93323959]
[1753100890011,0.1,191.13,191.12,5.93323959]
[1753100890396,0.1,191.13,191.12,6.59323959]
[1753100891289,0.1,191.13,191.12,32.59323959]
[1753100891901,0.1,191.13,191.12,37.82555436]
[1753100892521,1e-08,191.13,191.12,37.82555436]
[1753100892721,1e-08,191.13,191.12,42.0868428]
[1753100894497,1e-08,191.13,191.12,36.15360321]
[1753100894712,1e-08,191.13,191.12,42.0868428]
[1753100894910,1e-08,191.13,191.12,78.9268428]
[1753100896719,0.68,191.21,191.12,92.00762974]
[1753100897036,0.74,191.21,191.2,5.93323959]
[1753100897438,0.74,191.21,191.17,26.0]
[1753100897615,0.74,191.21,191.2,5.93323959]
[1753100898132,0.06,191.21,191.2,5.93323959]
[1753100898635,0.06,191.21,191.2,11.16336511]
[1753100900321,0.06,191.21,191.2,40.39332023]
[1753100900532,0.06,191.21,191.2,14.39332023]
[1753100900718,0.06,191.21,191.2,13.73332023]
[1753100901632,0.06,191.21,191.2,8.46008064]
[1753100901802,0.06,191.21,191.2,20.32655982]
[1753100902711,0.06,191.21,191.2,8.46008064]
[1753100903047,0.06,191.21,191.2,20.32655982]
[1753100903929,0.06,191.21,191.2,14.39332023]
[1753100904224,0.06,191.21,191.2,13.73332023]
[1753100905914,0.06,191.21,191.2,7.80008064]
[1753100906234,0.74,191.21,191.2,39.73332023]
[1753100906539,0.74,191.21,191.2,13.73332023]
[1753100907036,0.74,191.21,191.2,7.80008064]
[1753100907233,2.307,191.21,191.13,5.89204101]
[1753100907439,0.68,191.2,191.18,5.93323959]
[1753100907637,0.68,191.2,191.19,5.93323959]
[1753100907840,0.06,191.21,191.2,26.0]
[1753100908016,0.06,191.21,191.2,31.93323959]
[1753100908638,0.06,191.21,191.2,32.59323959]
[1753100908841,0.06,191.21,191.2,37.82336511]
[1753100909014,0.74,191.21,191.2,37.16336511]
[1753100909632,0.06,191.21,191.2,37.16336511]
[1753100910133,0.06,191.21,191.2,37.82336511]
[1753100910926,1e-08,191.21,191.2,45.8866047]
[1753100912335,1e-08,191.21,191.2,39.29336511]
[1753100912518,1e-08,191.21,191.2,39.96336511]
[1753100912716,1e-08,191.21,191.2,45.8966047]
[1753100912915,36.86,191.27,191.2,73.40679388]
[1753100913117,0.1,191.29,191.28,26.0]
[1753100913319,0.79,191.29,191.28,28.13]
[1753100914236,17.57468397,191.29,191.28,2.13]
[1753100914416,17.57468397,191.29,191.28,28.13]
[1753100916035,17.57468397,191.29,191.28,2.13]
[1753100916241,17.57468397,191.29,191.28,28.13]
[1753100917831,0.79,191.29,191.28,5.93323959]
[1753100918031,0.79,191.29,191.28,31.93323959]
[1753100918629,0.1,191.29,191.28,31.93323959]
[1753100919717,0.1,191.29,191.28,37.16117769]
[1753100920248,0.79,191.29,191.28,37.16117769]
[1753100920828,0.1,191.29,191.28,37.26117769]
[1753100921240,0.1,191.29,191.28,52.36605307]
[1753100921550,0.1,191.29,191.28,58.29929266]
[1753100921755,1e-08,191.29,191.28,46.43281348]
[1753100921929,1e-08,191.29,191.28,37.93117769]
[1753100923347,0.06,191.33,191.28,63.92650374]
[1753100923650,0.06,191.33,191.32,31.93323959]
[1753100923868,0.06,191.33,191.32,33.25684507]
[1753100924151,1e-08,191.33,191.32,39.86008466]
[1753100924364,1.6351,191.4,191.32,60.36983152]
[1753100924575,54.33468397,191.39,191.32,33.25684507]
[1753100924726,6.62323959,191.38,191.32,13.19008466]
[1753100924927,16.78468397,191.35,191.32,2.03]
[1753100925144,16.78468397,191.35,191.34,26.0]
[1753100925333,0.69,191.35,191.34,28.03]
[1753100926127,42.0850694,191.39,191.34,39.18953832]
[1753100926128,0.69,191.38,191.34,39.18953832]
[1753100926340,0.69,191.38,191.37,5.93323959]
[1753100926538,16.78468397,191.39,191.37,5.93323959]
[1753100926753,16.78468397,191.39,191.38,5.93323959]
[1753100926754,0.69,191.39,191.38,5.93323959]
[1753100926927,16.78468397,191.39,191.38,5.93323959]
[1753100927558,38.4951,191.4,191.38,5.93323959]
[1753100927848,0.1,191.41,191.4,31.22466039]
[1753100928032,0.1,191.41,191.4,43.09113957]
[1753100928227,0.1,191.41,191.4,37.15789998]
[1753100928654,0.1,191.41,191.4,31.22466039]
[1753100928841,0.1,191.41,191.4,37.15789998]
[1753100929829,0.1,191.41,191.4,31.22466039]
[1753100930052,0.1,191.41,191.4,37.15789998]
[1753100930637,0.79,191.41,191.4,37.15789998]
[1753100930840,0.1,191.41,191.4,37.15789998]
[1753100931338,10.0,191.56,191.4,107.3032215]
[1753100931339,2.2447,191.5,191.4,107.3032215]
[1753100931544,19.02938397,191.5,191.49,5.93323959]
[1753100932036,2.2447,191.5,191.49,5.93323959]
[1753100932237,2.2447,191.5,191.49,11.1554444]
[1753100932441,2.2447,191.5,191.48,5.22242911]
[1753100932762,0.69,191.5,191.49,5.93323959]
[1753100933154,0.69,191.5,191.38,2.03]
[1753100933155,1.6427,191.47,191.38,2.03]
[1753100933455,22.71792356,191.39,191.38,2.03]
[1753100933637,19.11738397,191.39,191.38,0.3634]
[1753100933837,55.97738397,191.39,191.38,0.3634]
[1753100935881,55.97738397,191.39,191.34,31.22624572]
[1753100936155,16.78468397,191.36,191.34,26.0]
[1753100936355,54.31468397,191.35,191.34,26.0]
[1753100939664,54.31468397,191.35,191.34,37.15953832]
[1753100939843,36.84,191.35,191.34,37.15953832]
[1753100940043,53.60468397,191.38,191.34,37.82953832]
[1753100940245,53.60468397,191.38,191.37,5.93323959]
[1753100940773,0.06,191.35,191.34,31.89629873]
[1753100941060,0.06,191.35,191.34,37.15953832]
[1753100941452,0.06,191.35,191.34,37.81953832]
[1753100941756,0.06,191.35,191.34,37.15953832]
[1753100942744,0.06,191.35,191.34,11.81953832]
[1753100944444,0.06,191.35,191.34,11.15953832]
[1753100944742,0.74,191.35,191.34,11.15953832]
[1753100945454,0.06,191.35,191.34,11.15953832]
[1753100946448,0.06,191.35,191.34,11.81953832]
[1753100947353,1e-08,191.35,191.34,11.81953832]
[1753100947554,0.06,191.39,191.37,26.0]
[1753100947847,0.06,191.39,191.38,5.93323959]
[1753100948766,0.06,191.39,191.38,11.15844598]
[1753100949545,16.78468397,191.38,191.37,31.22547551]
[1753100949768,17.46468397,191.38,191.37,31.22547551]
[1753100949966,0.68,191.38,191.37,31.22547551]
[1753100950864,0.06,191.39,191.37,37.1587151]
[1753100951066,0.06,191.39,191.37,31.22547551]
[1753100951250,0.74,191.39,191.38,5.93323959]
[1753100951852,17.46468397,191.48,191.41,26.0]
[1753100952172,37.48,191.47,191.45,5.93323959]
[1753100952346,16.78468397,191.46,191.45,5.93323959]
[1753100952545,17.46468397,191.46,191.45,5.93323959]
[1753100953256,17.46468397,191.46,191.45,8.63708137]
[1753100953453,17.46468397,191.46,191.44,31.2235123]
[1753100953675,16.78468397,191.44,191.43,26.0]
[1753100953857,16.78468397,191.44,191.43,34.63708137]
[1753100955073,16.78468397,191.44,191.43,39.86092298]
[1753100956279,36.8,191.45,191.43,40.52092298]
[1753100956492,53.58468397,191.45,191.44,8.63708137]
[1753100956778,36.8,191.45,191.44,8.63708137]
[1753100956948,16.78468397,191.46,191.44,8.63708137]
[1753100957150,16.78468397,191.46,191.45,8.63708137]
[1753100957974,0.68,191.51,191.45,8.63708137]
[1753100958177,53.56468397,191.5,191.45,0.66]
[1753100958474,54.24468397,191.5,191.49,8.63708137]
[1753100959277,54.24468397,191.5,191.49,13.85928618]
[1753100959885,26.0,191.45,191.29,4.92127421]
[1753100960174,16.78468397,191.39,191.33,8.66708137]
[1753100960382,16.78468397,191.37,191.34,8.63708137]
[1753100960679,16.78468397,191.35,191.33,8.66708137]
[1753100960866,37.72,191.34,191.33,34.66708137]
[1753100961064,37.72,191.34,191.33,38.29708137]
[1753100961282,42.78468397,191.3,191.19,2.71983083]
[1753100961458,42.78468397,191.3,191.17,8.83708137]
[1753100961459,1.602,191.29,191.17,8.83708137]
[1753100961658,16.78468397,191.23,191.17,34.83708137]
[1753100961859,16.78468397,191.21,191.17,8.83708137]
[1753100962053,0.68,191.2,191.17,0.2]
[1753100962475,0.68,191.2,191.17,8.83708137]
[1753100962680,0.68,191.2,191.17,0.2]
[1753100962876,37.88,191.19,191.17,0.2]
[1753100963182,30.652438,191.18,191.17,0.2]
[1753100963363,32.247438,191.18,191.17,0.2]
[1753100963567,32.927438,191.18,191.17,0.2]
[1753100964383,24.29035663,191.18,191.17,0.2]
[1753100964684,32.927438,191.18,191.16,0.03]
[1753100964870,26.10176534,191.17,191.16,0.03]
[1753100965287,31.33271161,191.17,191.16,0.03]
[1753100965475,59.89563024,191.17,191.16,0.03]
[1753100965680,68.53271161,191.17,191.16,0.03]
[1753100965879,59.89563024,191.17,191.16,0.03]
[1753100966758,54.00468397,191.17,191.16,8.66708137]
[1753100967277,54.00468397,191.17,191.16,0.03]
[1753100968158,54.00468397,191.17,191.16,8.66708137]
[1753100968585,54.00468397,191.17,191.16,0.03]
[1753100969086,54.68468397,191.17,191.16,0.03]
[1753100970612,54.00468397,191.17,191.16,0.03]
[1753100971284,54.66468397,191.17,191.16,0.03]
[1753100972492,54.00468397,191.17,191.16,0.03]
[1753100973772,54.00468397,191.17,191.16,8.66708137]
[1753100973966,16.78468397,191.17,191.16,8.66708137]
[1753100974285,0.66,191.24,191.19,26.0]
[1753100974471,53.96468397,191.23,191.21,8.63708137]
[1753100974784,53.98468397,191.23,191.21,8.63708137]
[1753100974999,54.64468397,191.23,191.16,26.73]
[1753100975162,54.64468397,191.23,191.2,8.63708137]
[1753100975366,54.64468397,191.23,191.21,8.63708137]
[1753100976399,54.64468397,191.23,191.22,8.63708137]
[1753100976607,53.98468397,191.23,191.22,8.63708137]
[1753100977389,16.78468397,191.23,191.22,9.33708137]
[1753100977892,54.62468397,191.23,191.2,26.0]
[1753100978112,16.78468397,191.21,191.2,34.63708137]
[1753100979169,16.78468397,191.21,191.2,26.0]
[1753100979494,16.78468397,191.21,191.2,34.63708137]
[1753100979997,16.78468397,191.21,191.2,26.0]
[1753100980173,16.78468397,191.21,191.2,34.63708137]
[1753100981888,53.94468397,191.21,191.2,34.63708137]
[1753100984292,16.78468397,191.21,191.2,40.56720689]
[1753100984489,0.06,191.25,191.2,40.56720689]
[1753100984782,0.06,191.25,191.24,8.63708137]
[1753100985296,0.06,191.25,191.24,9.33708137]
[1753100985476,0.06,191.25,191.24,13.45456888]
[1753100985780,16.78468397,191.31,191.28,5.2279381]
[1753100985986,16.78468397,191.32,191.3,8.63708137]
[1753100986183,16.78468397,191.32,191.31,9.33708137]
[1753100986373,16.78468397,191.32,191.31,8.63708137]
[1753100986976,16.78468397,191.32,191.31,9.33708137]
[1753100987190,0.66,191.37,191.31,9.33708137]
[1753100987191,16.78468397,191.36,191.31,9.33708137]
[1753100987392,53.92468397,191.36,191.35,8.63708137]
[1753100987583,53.92468397,191.36,191.34,8.63708137]
[1753100987789,53.92468397,191.36,191.35,8.63708137]
[1753100988188,53.92468397,191.36,191.35,14.56310697]
[1753100988502,2.186,191.41,191.33,5.22634806]
[1753100988503,16.78468397,191.37,191.33,5.22634806]
[1753100988716,16.78468397,191.37,191.35,8.63708137]
[1753100989009,16.78468397,191.37,191.33,31.22634806]
[1753100989010,16.78468397,191.37,191.36,8.63708137]
[1753100989313,16.78468397,191.37,191.35,8.63708137]
[1753100989690,16.78468397,191.35,191.33,26.0]
[1753100989897,37.12,191.34,191.33,26.0]
[1753100990083,37.78,191.34,191.33,26.0]
[1753100990508,37.12,191.34,191.33,26.0]
[1753100991097,37.12,191.34,191.33,34.63708137]
[1753100991716,53.90468397,191.34,191.33,34.63708137]
[1753100997490,53.90468397,191.34,191.33,26.0]
[1753100997689,54.56468397,191.34,191.33,26.0]
[1753100998616,54.56468397,191.34,191.33,34.63708137]
[1753100999205,16.78468397,191.33,191.31,5.22708205]
[1753100999406,16.78468397,191.33,191.32,34.63708137]
[1753101000517,37.04,191.34,191.32,40.56378795]
[1753101000691,16.78468397,191.34,191.33,9.33708137]
[1753101000892,91.326,191.41,191.35,26.0]
[1753101001089,53.82468397,191.4,191.38,8.63708137]
[1753101001315,53.82468397,191.4,191.39,8.63708137]
[1753101001519,5.22411962,191.42,191.39,8.63708137]
[1753101001520,16.78468397,191.42,191.39,8.63708137]
[1753101001837,16.78468397,191.4,191.35,26.67]
[1753101002117,16.78468397,191.4,191.39,26.0]
[1753101002118,53.84468397,191.4,191.39,26.0]
[1753101002624,54.53468397,191.4,191.33,26.0]
[1753101002801,16.78468397,191.38,191.34,8.63708137]
[1753101003118,54.55468397,191.37,191.36,26.0]
[1753101003712,16.78468397,191.36,191.32,8.63708137]
[1753101003917,54.55468397,191.35,191.34,26.0]
[1753101004839,54.55468397,191.35,191.33,26.0]
[1753101005015,0.69,191.34,191.33,26.0]
[1753101005404,16.78468397,191.33,191.32,34.63708137]
[1753101005626,53.86468397,191.33,191.32,26.0]
[1753101005926,53.86468397,191.33,191.32,34.63708137]
[1753101006514,53.86468397,191.33,191.32,26.0]
[1753101006916,53.86468397,191.33,191.32,34.63708137]
[1753101007915,53.86468397,191.33,191.32,39.86392644]
[1753101008532,53.86468397,191.33,191.32,26.0]
[1753101009127,53.86468397,191.33,191.32,34.63708137]
[1753101009833,0.69,191.38,191.32,40.53392644]
[1753101010025,53.80468397,191.37,191.35,8.63708137]
[1753101010413,53.80468397,191.37,191.34,8.63708137]
[1753101010618,53.80468397,191.37,191.36,8.63708137]
[1753101011214,53.80468397,191.37,191.36,9.30708137]
[1753101011730,53.80468397,191.37,191.36,8.63708137]
[1753101012628,53.80468397,191.37,191.36,9.30708137]
[1753101012828,53.80468397,191.37,191.36,14.53283387]
[1753101013133,16.78468397,191.36,191.35,26.0]
[1753101013336,16.78468397,191.36,191.35,34.63708137]
[1753101014137,16.78468397,191.36,191.35,40.53288429]
[1753101016328,16.78468397,191.36,191.35,31.89580292]
[1753101016522,16.78468397,191.36,191.35,40.53288429]
[1753101018340,16.78468397,191.36,191.35,39.86288429]
[1753101019238,16.78468397,191.36,191.35,31.89487567]
[1753101019415,16.78468397,191.36,191.35,37.12090127]
[1753101020027,17.47468397,191.36,191.32,31.89487567]
[1753101020237,16.78468397,191.34,191.32,31.89487567]
[1753101020428,53.72468397,191.33,191.32,31.89487567]
[1753101020741,53.72468397,191.33,191.32,7.90487567]
[1753101020916,53.72468397,191.33,191.32,33.90487567]
[1753101021538,53.72468397,191.33,191.32,39.13172074]
[1753101021819,16.78468397,191.33,191.32,39.13172074]
[1753101022233,16.78468397,191.33,191.32,39.80172074]
[1753101022439,36.94,191.35,191.34,26.0]
[1753101022626,36.96,191.36,191.34,6.56487567]
[1753101022825,36.96,191.36,191.35,6.56487567]
[1753101023032,53.74468397,191.36,191.35,6.56487567]
[1753101023421,16.78468397,191.36,191.35,11.79090127]
[1753101023737,16.78468397,191.36,191.35,11.12090127]
[1753101024747,16.78468397,191.36,191.35,5.2260256]
[1753101024942,16.78468397,191.36,191.35,11.12090127]
[1753101025123,16.78468397,191.36,191.35,5.89487567]
[1753101025322,16.78468397,191.36,191.35,11.12090127]
[1753101025531,16.78468397,191.35,191.33,5.89487567]
[1753101025719,53.72468397,191.34,191.33,5.89487567]
[1753101026534,53.72468397,191.34,191.33,26.0]
[1753101026747,53.72468397,191.34,191.33,31.89487567]
[1753101027257,16.78468397,191.34,191.33,31.89487567]
[1753101028942,16.78468397,191.34,191.33,37.12144756]
[1753101031321,16.78468397,191.34,191.32,11.12163263]
[1753101031523,16.78468397,191.34,191.33,5.89487567]
[1753101032752,16.78468397,191.34,191.33,11.12144756]
[1753101032932,16.78468397,191.34,191.33,5.89487567]
[1753101033246,16.78468397,191.33,191.32,31.89487567]
[1753101033434,53.70468397,191.33,191.32,31.89487567]
[1753101033635,16.78468397,191.32,191.24,4.14239148]
[1753101033936,37.63,191.31,191.27,5.89487567]
[1753101034152,16.78468397,191.29,191.27,5.89487567]
[1753101034447,53.70468397,191.28,191.27,31.89487567]
[1753101035027,53.70468397,191.28,191.27,37.82308709]
[1753101035228,16.78468397,191.28,191.27,37.82308709]
[1753101035949,16.78468397,191.28,191.27,31.89487567]
[1753101036148,16.78468397,191.28,191.27,26.0]
[1753101036353,16.78468397,191.28,191.27,5.89487567]
[1753101037049,16.78468397,191.28,191.27,31.89487567]
[1753101037244,16.78468397,191.28,191.27,32.59487567]
[1753101038353,16.78468397,191.28,191.27,37.82308709]
[1753101039141,36.9,191.29,191.27,37.82308709]
[1753101039325,53.68468397,191.29,191.28,6.59487567]
[1753101039531,36.9,191.29,191.28,6.59487567]
[1753101039736,36.9,191.3,191.28,6.59487567]
[1753101039958,16.78468397,191.29,191.28,26.7]
[1753101040166,16.78468397,191.29,191.28,31.9279381]
[1753101042851,36.88,191.35,191.34,11.12097029]
[1753101043051,53.66468397,191.35,191.34,11.82097029]
[1753101043432,0.06,191.36,191.34,11.82097029]
[1753101043636,0.06,191.36,191.35,6.59487567]
[1753101044334,0.06,191.36,191.35,11.82090127]
[1753101047755,16.78468397,191.35,191.27,26.7]
[1753101047933,16.78468397,191.35,191.3,5.89487567]
[1753101047934,0.71,191.34,191.3,5.89487567]
[1753101048134,16.78468397,191.32,191.3,5.89487567]
[1753101048353,17.49468397,191.32,191.3,5.89487567]
[1753101049061,17.49468397,191.31,191.3,5.89487567]
[1753101049559,16.78468397,191.31,191.3,5.89487567]
[1753101049863,16.78468397,191.31,191.3,11.1222672]
[1753101050562,16.78468397,191.31,191.29,5.22760988]
[1753101050859,17.49468397,191.31,191.29,5.22760988]
[1753101051039,16.78468397,191.31,191.29,5.22760988]
[1753101051230,16.78468397,191.31,191.29,11.12248555]
[1753101051946,16.78468397,191.31,191.29,5.22760988]
[1753101052463,16.78468397,191.31,191.29,11.12248555]
[1753101053862,16.78468397,191.31,191.3,31.89487567]
[1753101054259,16.78468397,191.31,191.3,26.0]
[1753101056762,16.78468397,191.31,191.3,31.22739153]
[1753101060573,36.9,191.33,191.3,31.92739153]
[1753101060748,16.78468397,191.34,191.33,26.0]
[1753101060948,16.78468397,191.34,191.33,31.89487567]
[1753101061868,16.78468397,191.34,191.33,26.0]
[1753101062573,17.44468397,191.34,191.33,26.0]
[1753101063150,17.44468397,191.34,191.29,5.89487567]
[1753101063370,16.78468397,191.32,191.29,5.89487567]
[1753101063561,37.52,191.31,191.29,5.89487567]
[1753101063770,36.86,191.31,191.29,11.122482]
[1753101064670,53.64468397,191.31,191.3,5.89487567]
[1753101065766,16.78468397,191.3,191.29,5.89487567]
[1753101066178,16.78468397,191.3,191.29,5.2276648]
[1753101066366,16.78468397,191.3,191.29,11.12254047]
[1753101067775,16.78468397,191.3,191.29,5.2276648]
[1753101067776,17.44468397,191.3,191.29,5.2276648]
[1753101068478,17.44468397,191.3,191.29,26.0]
[1753101068675,16.78468397,191.3,191.29,26.0]
[1753101070571,16.78468397,191.3,191.28,26.0]
[1753101070866,36.86,191.29,191.27,5.89487567]
[1753101071765,53.64468397,191.29,191.28,5.89487567]
[1753101073262,53.64468397,191.29,191.28,11.12281377]